[Event "CCT Julius Baer-D2 2024"]
[Site "Online"]
[Date "2024.09.28"]
[Round "51"]
[White "Oparin, Grigoriy"]
[Black "Indjic, Aleksandar"]
[Result "0-1"]
[ECO "E04"]
[WhiteElo "2662"]
[BlackElo "2611"]
[Annotator "TA"]
[PlyCount "108"]
[EventDate "2024.09.25"]
[EventType "swiss"]
[EventCountry "NET"]
[SourceTitle "playchess.com"]
[Source "ChessBase"]
[SourceQuality "1"]
[TimeControl "600+2"]

{[%evp 43,108,-48,5,0,0,-66,-71,-93,-114,-94,-89,-86,-85,-85,-100,-129,-83,-79,-91,-95,-70,-162,-141,-156,-167,-276,-273,-314,-304,-306,-297,-307,-280,-306,-219,-387,-346,-398,-393,-370,-261,-279,-286,-322,-308,-287,-269,-310,-241,-535,-532,-506,-231,-238,-254,-221,-251,-233,-245,-533,-524,-1000,-1004,-866,-770,-1619,-1169]} 1. Nf3 {[%emt 0:00:02]} d5 {[%emt 0:00:05]} 2. d4 {[%emt 0:00:01]} Nf6 {[%emt 0:00:03]} 3. c4 {[%emt 0:00:03]} e6 {[%emt 0:00:00]} 4. g3 {[%emt 0:00:01]} Nc6 {[%emt 0:00:02]} 5. Bg2 {[%emt 0:00:03]} dxc4 {[%emt 0:00:03]} 6. Qa4 {[%emt 0:00:22]} Bb4+ {[%emt 0:00:04]} 7. Bd2 {[%emt 0:00:03]} Nd5 {[%emt 0:00:02]} 8. O-O {[%emt 0:01:53] E04: Open Catalan: 5 Nf3.} Nb6 {[%emt 0:00:06] 8...Bxd2 might become the main line.} 9. Qc2 {[%emt 0:00:19]} Bxd2 {[%emt 0:00:02]} 10. Nbxd2 $146 {[%emt 0:00:23]} ({Predecessor:} 10. Qxd2 O-O 11. Qc3 e5 12. dxe5 Be6 13. Na3 Qe7 14. Nd2 Qc5 15. Ne4 Qxe5 16. Qxe5 Nxe5 {½-½ Riazantsev,A (2626)-Nesterov,A (2573) Moscow Dvoretsky Memorial 2022 (3.2)}) 10... Nxd4 {[%emt 0:00:02]} 11. Nxd4 {[%emt 0:00:00]} Qxd4 {[%emt 0:00:02]} 12. Rfd1 {[%emt 0:00:00]} O-O {[%emt 0:00:03]} 13. Rac1 {[%emt 0:00:08]} c6 {[%emt 0:00:10]} 14. Ne4 {[%emt 0:00:42]} Qe5 {[%emt 0:00:04]} 15. Nd6 {[%emt 0:00:03]} Qf6 {[%emt 0:00:08]} 16. Rd2 {[%emt 0:01:13]} e5 {[%emt 0:00:07]} 17. Rcd1 {[%emt 0:00:12]} Qe7 {[%emt 0:00:02]} 18. Nxc4 {[%emt 0:00:53]} Nxc4 {[%emt 0:00:03]} 19. Qxc4 {[%emt 0:00:00]} Be6 {[%emt 0:00:02]} 20. Qc3 {[%emt 0:00:00]} f6 {[%emt 0:00:02]} 21. Qa5 {[%emt 0:00:09]} Rac8 {[%emt 0:00:44]} 22. Rd6 {[%emt 0:00:21]} b6 {[%emt 0:00:25]} (22... Kh8 $15) 23. Qa3 $11 {[%emt 0:00:15]} Bc4 {[%emt 0:01:38]} 24. e3 {[%emt 0:01:34]} (24. Qa4 $11 b5 (24... Bxe2 25. Rd7 $11) 25. Qa6) 24... e4 $15 {[%emt 0:00:18]} 25. Rd7 {[%emt 0:00:47]} Qxa3 {[%emt 0:00:02]} 26. bxa3 {[%emt 0:00:00]} Bd5 {[%emt 0:00:27]} (26... Bxa2 $6 27. Bxe4 f5 28. Bf3 $11) 27. Rxa7 {[%emt 0:00:24]} Ra8 {[%emt 0:00:02]} (27... Bxa2 $6 28. Bxe4 c5 29. Rdd7 $14) 28. Rb7 {[%emt 0:00:00]} b5 {[%emt 0:00:04]} 29. Bf1 {[%emt 0:00:19] [#]} Rf7 {[%emt 0:00:16]} (29... Rxa3 $6 30. Bxb5 f5 31. Rc7 $11) (29... Bxa2 30. Rd2 Bf7 (30... Rxa3 31. Rdd7 $15) 31. Rdd7 $11) ({Better is} 29... Rfb8 $1 {[%cal Rb8b7]} 30. Rxb8+ Rxb8) 30. Rb6 {[%emt 0:00:07]} Rd7 $1 {[%emt 0:00:10]} (30... Rxa3 31. Bxb5 Rc7 (31... Bxa2 32. Bxc6 Rd3 33. Ra1 $16) (31... Rxa2 $2 32. Rxc6 Bb3 33. Rb1 $18) 32. Bxc6 Bxc6 33. Rc1 $17) 31. Bh3 {[%emt 0:00:23]} Re7 {[%emt 0:00:07]} 32. Bf1 {[%emt 0:00:02]} (32. Rxd5 $1 $15 cxd5 33. Be6+ Kh8 34. Bxd5) 32... Re5 $1 $19 {[%emt 0:00:01]} (32... Bxa2 33. Rxc6 Kf7 34. Bxb5 $14) (32... Rxa3 33. Bxb5 Rc3 34. Ba4 $11) 33. Rc1 {[%emt 0:00:16]} Rxa3 {[%emt 0:00:04]} (33... Bxa2 34. Rcxc6 (34. Rbxc6 Rxa3 35. Rc8+ Kf7 $11) 34... Re7 35. Rxb5 $16 (35. Bxb5 Rxa3 36. Kg2 Kf7 $14)) 34. Rb7 {[%emt 0:00:01]} (34. Bh3 $142) 34... h5 {[%emt 0:00:07]} (34... Bxa2 35. Rxc6 Ra8 36. Rcc7 $14 (36. Rxb5 Rxb5 37. Bxb5 h5 $11) (36. Bxb5 h5 $14)) (34... Rxa2 35. Bxb5 Re6 36. Bc4 Bxc4 37. Rxc4 $11) 35. h4 {[%emt 0:00:04]} Kh7 {[%emt 0:00:02]} (35... Bxa2 36. Rxc6 Bd5 37. Rc8+ Kh7 38. Rxb5 $16) 36. Bh3 {[%emt 0:00:03]} Rxa2 {[%emt 0:00:01]} ({Not} 36... Bxa2 37. Bd7 $17) 37. Bd7 {[%emt 0:00:02]} Ra6 {[%emt 0:00:20]} 38. Bc8 {[%emt 0:00:00]} Re8 {[%emt 0:00:46]} 39. Bd7 $2 {[%emt 0:00:02]} (39. Rxb5 cxb5 (39... Rxc8 40. Rxd5 cxd5 41. Rxc8 $15) 40. Bxa6) 39... Rd8 {[%emt 0:00:06]} 40. Rc5 {[%emt 0:00:04]} Kg6 {[%emt 0:00:18]} 41. Kg2 {[%emt 0:00:00]} b4 {[%emt 0:00:03]} 42. g4 {[%emt 0:00:05]} hxg4 {[%emt 0:00:03]} 43. Bxg4 {[%emt 0:00:00]} b3 {[%emt 0:00:02]} 44. Bd1 {[%emt 0:00:02]} Ra3 {[%emt 0:00:13]} 45. Kg3 {[%emt 0:00:02]} Kh6 {[%emt 0:00:17]} 46. Kf4 $2 {[%emt 0:00:02]} (46. Rb4) 46... Ra2 $19 {[%emt 0:00:02]} 47. Kg3 {[%emt 0:00:01]} b2 {[%emt 0:00:04]} (47... Rb2 $142 48. Rb4 Rb1 49. Bxb3 Bxb3 50. Rxc6 Rdd1 (50... Bc2 $2 51. Rxb1 Bxb1 52. Rc4 $19)) 48. Bc2 $19 {[%emt 0:00:02]} Rg8 {[%emt 0:00:24]} 49. Bb1 {[%emt 0:00:02]} Ra1 {[%emt 0:00:06]} 50. Rxb2 {[%emt 0:00:00] [#]} g5 $1 {[%emt 0:00:01]} 51. Rb6 $2 {[%emt 0:00:04]} (51. hxg5+ Rxg5+ (51... fxg5 52. f3 $11) 52. Kf4) 51... gxh4+ $19 {[%emt 0:00:04]} 52. Kf4 {[%emt 0:00:00]} Rg2 {[%emt 0:00:05]} 53. Rb2 {[%emt 0:00:11]} h3 {[%emt 0:00:15]} 54. Rb8 {[%emt 0:00:01]} h2 {[%emt 0:00:10]} 0-1

[Event "CCT Julius Baer-D2 2024"]
[Site "Online"]
[Date "2024.09.28"]
[Round "51"]
[White "Indjic, Aleksandar"]
[Black "Oparin, Grigoriy"]
[Result "1-0"]
[ECO "D37"]
[WhiteElo "2611"]
[BlackElo "2662"]
[Annotator "ChessBase"]
[PlyCount "277"]
[EventDate "2024.09.25"]
[EventType "swiss"]
[EventCountry "NET"]
[SourceTitle "playchess.com"]
[Source "ChessBase"]
[SourceQuality "1"]
[TimeControl "600+2"]

1. d4 {[%emt 0:00:03]} d5 {[%emt 0:00:04]} 2. c4 {[%emt 0:00:01]} e6 {[%emt 0:00:01]} 3. Nf3 {[%emt 0:00:02]} a6 {[%emt 0:00:13]} 4. cxd5 {[%emt 0:00:03]} exd5 {[%emt 0:00:01]} 5. Nc3 {[%emt 0:00:02]} Nf6 {[%emt 0:00:01]} 6. Ne5 {[%emt 0:00:01]} Be6 {[%emt 0:00:18]} 7. Bf4 {[%emt 0:00:31]} Nbd7 {[%emt 0:00:26]} 8. e3 {[%emt 0:00:02]} c6 {[%emt 0:00:06]} 9. Bd3 {[%emt 0:00:01]} Be7 {[%emt 0:00:24]} 10. h3 {[%emt 0:00:03]} O-O {[%emt 0:00:12]} 11. Qf3 {[%emt 0:00:08]} Nxe5 {[%emt 0:00:21]} 12. Bxe5 {[%emt 0:00:05]} Nd7 {[%emt 0:00:12]} 13. Bf4 {[%emt 0:00:01]} a5 {[%emt 0:00:19]} 14. Qg3 {[%emt 0:00:10]} Bh4 {[%emt 0:00:29]} 15. Qf3 {[%emt 0:00:09]} a4 {[%emt 0:00:01]} 16. Bd6 {[%emt 0:01:21]} Re8 {[%emt 0:00:05]} 17. O-O {[%emt 0:00:04]} g6 {[%emt 0:00:17]} 18. Rab1 {[%emt 0:00:12]} Bf6 {[%emt 0:00:06]} 19. Bc2 {[%emt 0:00:13]} b5 {[%emt 0:00:59]} 20. a3 {[%emt 0:00:21]} Bg7 {[%emt 0:00:14]} 21. Na2 {[%emt 0:00:12]} Nb6 {[%emt 0:00:04]} 22. Bc5 {[%emt 0:00:04]} Nc4 {[%emt 0:00:03]} 23. Rfd1 {[%emt 0:00:01]} f5 {[%emt 0:00:46]} 24. Nb4 {[%emt 0:00:11]} Bd7 {[%emt 0:00:09]} 25. Bd3 {[%emt 0:00:25]} Qf6 {[%emt 0:00:08]} 26. Bxc4 {[%emt 0:00:43]} bxc4 {[%emt 0:00:01]} 27. Qg3 {[%emt 0:00:01]} Re6 {[%emt 0:00:21]} 28. h4 {[%emt 0:00:40]} Re4 {[%emt 0:00:20]} 29. f4 {[%emt 0:00:01]} Rae8 {[%emt 0:00:16]} 30. Re1 {[%emt 0:00:02]} Rb8 {[%emt 0:01:01]} 31. Na2 {[%emt 0:00:06]} Ree8 {[%emt 0:00:09]} 32. Nc3 {[%emt 0:00:01]} Ra8 {[%emt 0:00:01]} 33. Kf2 {[%emt 0:00:05]} Kf7 {[%emt 0:00:07]} 34. Re2 {[%emt 0:00:42]} h6 {[%emt 0:00:05]} 35. Rh1 {[%emt 0:00:02]} Reb8 {[%emt 0:00:17]} 36. Rd2 {[%emt 0:00:03]} Rb3 {[%emt 0:00:13]} 37. Re1 {[%emt 0:00:02]} Be8 {[%emt 0:00:04]} 38. Ree2 {[%emt 0:00:03]} Ke6 {[%emt 0:00:11]} 39. Qh3 {[%emt 0:00:10]} Kf7 {[%emt 0:00:01]} 40. Qg3 {[%emt 0:00:02]} Qd8 {[%emt 0:00:04]} 41. Qh3 {[%emt 0:00:06]} Bd7 {[%emt 0:00:01]} 42. g3 {[%emt 0:01:06]} Bf6 {[%emt 0:00:02]} 43. Rc2 {[%emt 0:00:01]} Ra5 {[%emt 0:00:30]} 44. Bd6 {[%emt 0:00:12]} Qg8 {[%emt 0:00:17]} 45. Bb4 {[%emt 0:00:02]} Ra8 {[%emt 0:00:02]} 46. Kf1 {[%emt 0:00:05]} Be6 {[%emt 0:00:06]} 47. Bc5 {[%emt 0:00:05]} Ke8 {[%emt 0:00:00]} 48. Ke1 {[%emt 0:00:18]} Kd7 {[%emt 0:00:01]} 49. Kd1 {[%emt 0:00:01]} Bd8 {[%emt 0:00:14]} 50. Bb4 {[%emt 0:00:06]} Bb6 {[%emt 0:00:19]} 51. Kc1 {[%emt 0:00:10]} Qf7 {[%emt 0:00:01]} 52. Qh1 {[%emt 0:00:05]} Bd8 {[%emt 0:00:09]} 53. Qe1 {[%emt 0:00:07]} Bf6 {[%emt 0:00:01]} 54. Rh2 {[%emt 0:00:03]} Qe8 {[%emt 0:00:03]} 55. Bc5 {[%emt 0:00:10]} Qb8 {[%emt 0:00:05]} 56. Na2 {[%emt 0:00:15]} Qb7 {[%emt 0:00:10]} 57. Bb4 {[%emt 0:00:03]} Re8 {[%emt 0:00:04]} 58. Rce2 {[%emt 0:00:06]} Bf7 {[%emt 0:00:03]} 59. Nc3 {[%emt 0:00:13]} Qa6 {[%emt 0:00:01]} 60. Na2 {[%emt 0:00:04]} Rd3 {[%emt 0:00:07]} 61. Bc3 {[%emt 0:00:04]} Qb5 {[%emt 0:00:05]} 62. Nb4 {[%emt 0:00:03]} Be7 {[%emt 0:00:18]} 63. Nxd3 {[%emt 0:00:01]} cxd3 {[%emt 0:00:00]} 64. Rd2 {[%emt 0:00:04]} c5 {[%emt 0:00:02]} 65. Qd1 {[%emt 0:00:17]} c4 {[%emt 0:00:01]} 66. Rdg2 {[%emt 0:00:08]} Be6 {[%emt 0:00:03]} 67. Kd2 {[%emt 0:00:01]} Qc6 {[%emt 0:00:02]} 68. Ke1 {[%emt 0:00:01]} Rg8 {[%emt 0:00:01]} 69. Kf2 {[%emt 0:00:01]} Ke8 {[%emt 0:00:02]} 70. Rg1 {[%emt 0:00:01]} Kf7 {[%emt 0:00:00]} 71. Rgg2 {[%emt 0:00:00]} Bd8 {[%emt 0:00:01]} 72. Rg1 {[%emt 0:00:01]} Bc7 {[%emt 0:00:00]} 73. Rgg2 {[%emt 0:00:01]} Qe8 {[%emt 0:00:00]} 74. Rg1 {[%emt 0:00:01]} Bd7 {[%emt 0:00:01]} 75. Qf3 {[%emt 0:00:01]} Qe6 {[%emt 0:00:00]} 76. Rgg2 {[%emt 0:00:12]} Ke8 {[%emt 0:00:01]} 77. Rg1 {[%emt 0:00:01]} Kd8 {[%emt 0:00:00]} 78. Rgg2 {[%emt 0:00:00]} Kc8 {[%emt 0:00:01]} 79. Rg1 {[%emt 0:00:01]} Kb7 {[%emt 0:00:00]} 80. Qd1 {[%emt 0:00:01]} Bc6 {[%emt 0:00:01]} 81. Qf3 {[%emt 0:00:02]} Bb8 {[%emt 0:00:03]} 82. g4 {[%emt 0:00:01]} fxg4 {[%emt 0:00:09]} 83. Rxg4 {[%emt 0:00:02]} Bd7 {[%emt 0:00:02]} 84. Rg1 {[%emt 0:00:03]} Qf7 {[%emt 0:00:08]} 85. Ke1 {[%emt 0:00:12]} Bf5 {[%emt 0:00:01]} 86. Qd1 {[%emt 0:00:00]} Qe8 {[%emt 0:00:03]} 87. Kd2 {[%emt 0:00:01]} Rg7 {[%emt 0:00:07]} 88. Qf3 {[%emt 0:00:04]} Kc6 {[%emt 0:00:01]} 89. Qf2 {[%emt 0:00:07]} Re7 {[%emt 0:00:03]} 90. Rhg2 {[%emt 0:00:01]} Re4 {[%emt 0:00:07]} 91. Re1 {[%emt 0:00:04]} Bd6 {[%emt 0:00:04]} 92. Rgg1 {[%emt 0:00:03]} Be7 {[%emt 0:00:04]} 93. Rh1 {[%emt 0:00:11]} Qd7 {[%emt 0:00:02]} 94. Qf3 {[%emt 0:00:01]} Bg4 {[%emt 0:00:01]} 95. Qg3 {[%emt 0:00:04]} Bf5 {[%emt 0:00:02]} 96. Qf3 {[%emt 0:00:01]} Bd8 {[%emt 0:00:00]} 97. Qd1 {[%emt 0:00:02]} Kb5 {[%emt 0:00:02]} 98. Qf3 {[%emt 0:00:01]} Qe7 {[%emt 0:00:02]} 99. Bb4 {[%emt 0:00:04]} Qe6 {[%emt 0:00:01]} 100. Bc3 {[%emt 0:00:01]} Ba5 {[%emt 0:00:01]} 101. Rhg1 {[%emt 0:00:06]} Bc7 {[%emt 0:00:01]} 102. Rh1 {[%emt 0:00:01]} Bg4 {[%emt 0:00:03]} 103. Qf2 {[%emt 0:00:01]} Qe8 {[%emt 0:00:03]} 104. Qg2 {[%emt 0:00:03]} Bf5 {[%emt 0:00:00]} 105. Qf3 {[%emt 0:00:11]} Bd6 {[%emt 0:00:01]} 106. Rhg1 {[%emt 0:00:03]} Qf7 {[%emt 0:00:06]} 107. Rh1 {[%emt 0:00:03]} Qe6 {[%emt 0:00:02]} 108. Qf2 {[%emt 0:00:07]} Be7 {[%emt 0:00:02]} 109. Reg1 {[%emt 0:00:11]} Bd8 {[%emt 0:00:04]} 110. h5 {[%emt 0:00:01]} g5 {[%emt 0:00:02]} 111. fxg5 {[%emt 0:00:01]} Bxg5 {[%emt 0:00:03]} 112. Rxg5 {[%emt 0:00:00]} hxg5 {[%emt 0:00:01]} 113. h6 {[%emt 0:00:01]} Bh7 {[%emt 0:00:03]} 114. Qg3 {[%emt 0:00:02]} Kc6 {[%emt 0:00:05]} 115. Ba5 {[%emt 0:00:05]} Qe7 {[%emt 0:00:04]} 116. Bb4 {[%emt 0:00:08]} Qd8 {[%emt 0:00:03]} 117. Rf1 {[%emt 0:00:01]} Rh4 {[%emt 0:00:02]} 118. Kc3 {[%emt 0:00:05]} d2 {[%emt 0:00:01]} 119. Kxd2 {[%emt 0:00:02]} Rxh6 {[%emt 0:00:01]} 120. Rf7 {[%emt 0:00:02]} Be4 {[%emt 0:00:05]} 121. Qe5 {[%emt 0:00:02]} Kb6 {[%emt 0:00:02]} 122. Rf8 {[%emt 0:00:03]} Qd7 {[%emt 0:00:02]} 123. Qb8+ {[%emt 0:00:03]} Qb7 {[%emt 0:00:01]} 124. Qd8+ {[%emt 0:00:04]} Kc6 {[%emt 0:00:00]} 125. Rf6+ {[%emt 0:00:04]} Rxf6 {[%emt 0:00:02]} 126. Qxf6+ {[%emt 0:00:01]} Kb5 {[%emt 0:00:00]} 127. Qd6 {[%emt 0:00:05]} c3+ {[%emt 0:00:01]} 128. bxc3 {[%emt 0:00:03]} Kc4 {[%emt 0:00:02]} 129. Qc5+ {[%emt 0:00:04]} Kb3 {[%emt 0:00:01]} 130. c4 {[%emt 0:00:02]} dxc4 {[%emt 0:00:02]} 131. Bc3 {[%emt 0:00:00]} g4 {[%emt 0:00:02]} 132. Qd6 {[%emt 0:00:01]} Bd5 {[%emt 0:00:07]} 133. Qg3 {[%emt 0:00:03]} Kxa3 {[%emt 0:00:02]} 134. Qxg4 {[%emt 0:00:02]} Qb3 {[%emt 0:00:02]} 135. Qf5 {[%emt 0:00:03]} Bb7 {[%emt 0:00:04]} 136. d5 {[%emt 0:00:01]} Ka2 {[%emt 0:00:02]} 137. Qc2+ {[%emt 0:00:02]} Ka3 {[%emt 0:00:01]} 138. Qc1+ {[%emt 0:00:01]} Ka2 {[%emt 0:00:02]} 139. Qa1# {[%emt 0:00:01]} 1-0

[Event "CCT Julius Baer-D2 2024"]
[Site "Online"]
[Date "2024.09.28"]
[Round "51"]
[White "Bortnyk, Olexandr"]
[Black "Le, Tuan Minh"]
[Result "1-0"]
[ECO "D00"]
[WhiteElo "2608"]
[BlackElo "2564"]
[Annotator "TA"]
[PlyCount "117"]
[EventDate "2024.09.25"]
[EventType "swiss"]
[EventCountry "NET"]
[SourceTitle "playchess.com"]
[Source "ChessBase"]
[SourceQuality "1"]
[TimeControl "600+2"]

{[%evp 49,117,-20,-12,-7,-7,-18,-14,0,0,-58,-16,-87,-15,-10,-10,-105,-102,-128,-136,-93,-13,-218,-218,-220,-220,-227,-216,-212,-218,-527,-298,-282,-212,-269,-136,-129,-120,-392,-130,-120,-132,-362,-347,-208,-156,-154,-38,-45,-52,-52,-13,-11,-8,-8,0,-22,0,0,0,0,0,0,0,0,0,0,495,8,29975,29976]} 1. d4 {[%emt 0:00:07]} d5 {[%emt 0:00:04]} 2. Nc3 {[%emt 0:00:03]} Nf6 {[%emt 0:00:01]} 3. Bf4 {[%emt 0:00:01]} c5 {[%emt 0:00:01]} 4. e4 {[%emt 0:00:05]} cxd4 {[%emt 0:00:01]} 5. Qxd4 {[%emt 0:00:03]} Nc6 {[%emt 0:00:02]} 6. Bb5 {[%emt 0:00:01] D00: 1 d4 d5: Unusual lines.} Bd7 {[%emt 0:00:00]} 7. Bxc6 {[%emt 0:00:02]} Bxc6 {[%emt 0:00:01]} 8. e5 {[%emt 0:00:01]} Nd7 {[%emt 0:00:00]} 9. e6 {[%emt 0:00:02]} fxe6 {[%emt 0:00:00]} 10. Nf3 {[%emt 0:00:01]} Qb6 {[%emt 0:00:01]} 11. Qd2 {[%emt 0:00:02]} d4 {[%emt 0:00:01]} 12. Qxd4 {[%emt 0:00:02]} Bxf3 {[%emt 0:00:01]} 13. Qxb6 {[%emt 0:00:02]} Nxb6 {[%emt 0:00:00]} 14. gxf3 {[%emt 0:00:04]} g6 {[%emt 0:00:00]} 15. Nb5 {[%emt 0:00:47]} Rc8 {[%emt 0:00:03]} 16. O-O-O {[%emt 0:01:17]} Nd5 $146 {[%emt 0:00:14]} ({Predecessor:} 16... Bg7 17. Rhe1 O-O 18. Bg3 Rf5 19. Nd4 Bxd4 20. Rxd4 Kf7 21. Re3 {½-½ Bredl,H (2284)-Huber,B (2270) Oberliga Bayern 2122 2021 (8.4)}) 17. Bg5 {[%emt 0:01:09]} Nb4 {[%emt 0:03:05]} 18. Nd4 {[%emt 0:02:46]} e5 {[%emt 0:00:48]} 19. Ne6 {[%emt 0:00:55]} h6 {[%emt 0:00:03]} 20. Bh4 {[%emt 0:00:24]} Kf7 {[%emt 0:02:50]} 21. Nxf8 {[%emt 0:00:34]} Rhxf8 {[%emt 0:00:00]} 22. c3 {[%emt 0:00:02]} Ke6 {[%emt 0:00:14]} 23. Kb1 {[%emt 0:00:43]} Nc6 {[%emt 0:00:01]} 24. Rd3 {[%emt 0:00:03]} Rcd8 {[%emt 0:00:01]} 25. Re3 {[%emt 0:00:03]} Rd5 {[%emt 0:00:26]} 26. Bg3 {[%emt 0:00:03]} Kf5 {[%emt 0:00:04]} 27. Rhe1 {[%emt 0:00:14]} b5 {[%emt 0:00:02]} 28. h4 {[%emt 0:00:08]} Rfd8 {[%emt 0:00:08]} 29. Kc1 {[%emt 0:00:05]} (29. Re4 $11) 29... Rc5 {[%emt 0:00:08]} 30. Re4 {[%emt 0:00:18]} (30. a3 $11) 30... g5 {[%emt 0:00:08]} ({Black should try} 30... b4 $17 31. R1e3 Rdd5) 31. hxg5 {[%emt 0:00:04]} hxg5 {[%emt 0:00:00]} 32. Rh1 {[%emt 0:00:11]} (32. Kb1 $11 {remains equal.}) 32... b4 $17 {[%emt 0:00:08]} 33. Re3 {[%emt 0:00:08]} bxc3 $1 {[%emt 0:00:04]} 34. bxc3 {[%emt 0:00:07]} Nb4 {[%emt 0:00:13]} (34... Na5 $17 35. Rh7 Nc4) 35. Rh7 $2 {[%emt 0:00:07]} (35. Kb1 $1 $11 Nc6 36. Rhe1) 35... Nxa2+ $19 {[%emt 0:00:23]} 36. Kb2 {[%emt 0:00:02]} Rb8+ {[%emt 0:00:09]} (36... Rd2+ 37. Kb3 $17) 37. Kc2 {[%emt 0:00:03]} Nb4+ {[%emt 0:00:03]} 38. Kd2 {[%emt 0:00:04]} Nc6 {[%emt 0:00:05]} 39. Rd3 $2 {[%emt 0:00:11]} (39. Rh6) 39... Rb2+ {[%emt 0:00:17]} 40. Kc1 {[%emt 0:00:06]} Rcb5 {[%emt 0:00:13]} 41. Rd2 {[%emt 0:00:07]} Rxd2 {[%emt 0:00:54]} (41... R2b3 $19 {[%cal Oa7a5] White must now prevent ...a5!} 42. Kc2 Ra3) 42. Kxd2 $17 {[%emt 0:00:01]} a5 {[%emt 0:00:01]} 43. Rh5 $2 {[%emt 0:00:00][%mdl 8192]} (43. Rh1 $17 {was necessary.}) 43... Rb8 $2 {[%emt 0:00:08]} (43... a4 $19 {is more deadly.} 44. Bh4 a3 45. Rxg5+ Ke6 46. Rg6+ Kf7 (46... Kd7 $2 47. Rg1 $19)) 44. Rh6 {[%emt 0:00:03]} Rb6 {[%emt 0:00:03]} 45. Rh5 $2 {[%emt 0:00:06]} (45. Rh8 $17 {keeps fighting.}) 45... a4 $19 {[%emt 0:00:07]} 46. Bh4 {[%emt 0:00:02]} (46. Rh8 {was called for.} Na5 47. c4) 46... a3 {[%emt 0:00:01]} 47. Rxg5+ {[%emt 0:00:00] [#]} Kf4 {[%emt 0:00:08]} (47... Ke6 $1 $17 {...a2 is the strong threat.} 48. Rg4 Rb2+ 49. Kd3 e4+ 50. Rxe4+ Ne5+ 51. Kd4 Rb5) 48. Rg4+ $15 {[%emt 0:00:02]} Kxf3 {[%emt 0:00:08]} 49. Ra4 {[%emt 0:00:00]} Rb2+ {[%emt 0:00:02]} 50. Kc1 {[%emt 0:00:03]} Rb3 {[%emt 0:00:01]} 51. Kc2 {[%emt 0:00:01]} Rb2+ {[%emt 0:00:00]} 52. Kc1 {[%emt 0:00:00]} Rb7 {[%emt 0:00:03]} 53. Rxa3 {[%emt 0:00:01]} e4 {[%emt 0:00:03]} 54. Ra6 {[%emt 0:00:03]} Ne5 {[%emt 0:00:01]} 55. Kc2 {[%emt 0:00:10]} Nd3 {[%emt 0:00:02]} 56. Re6 $1 {[%emt 0:00:02]} Nf4 {[%emt 0:00:03]} 57. Rxe7 {[%emt 0:00:02]} Rb8 $2 {[%emt 0:00:02][%mdl 8192] [#]} (57... Rxe7 $11 {and Black stays safe.} 58. Bxe7 Kxf2) 58. Bg3 $2 {[%emt 0:00:01]} ({White has to play} 58. Rf7 $1 $18 {[%cal Rf7f4] Strongly threatening Rxf4+!} Rg8 59. Bg3 Rxg3 60. fxg3 Kxg3 61. c4) 58... Nd3 $2 {[%emt 0:00:01][%mdl 8192]} (58... Rf8 $11) 59. Bxb8 {[%emt 0:00:01]} 1-0